[Event "Titled Tuesday Blitz March 15 Early 2022"]
[White "Le, Tuan Minh"]
[Black "Dreev, Aleksey"]
[WhiteFideId "12401153"]
[BlackFideId "4100107"]
[WhiteElo "2450"]
[BlackElo "2625"]
[Result "0-1"]
[Round "06"]
[TimeControl "180+1"]
[Date "2022.03.15"]
[WhiteClock "0:00:12"]
[BlackClock "0:00:07"]

1. d4 {[%clk 0:02:59]}  d5 {[%clk 0:02:59]} 2. Nf3 {[%clk 0:02:58]}  Nf6 {[%clk 0:02:59]} 3. Bf4 {[%clk 0:02:57]}  e6 {[%clk 0:02:58]} 4. e3 {[%clk 0:02:56]}  c5 {[%clk 0:02:59]} 5. c3 {[%clk 0:02:55]}  Bd6 {[%clk 0:02:58]} 6. Nbd2 {[%clk 0:02:55]}  O-O {[%clk 0:02:48]} 7. Bd3 {[%clk 0:02:55]}  Bxf4 {[%clk 0:02:45]} 8. exf4 {[%clk 0:02:55]}  b6 {[%clk 0:02:46]} 9. Qe2 {[%clk 0:02:50]}  a5 {[%clk 0:02:45]} 10. O-O {[%clk 0:02:49]}  Ba6 {[%clk 0:02:45]} 11. Bxa6 {[%clk 0:02:49]}  Nxa6 {[%clk 0:02:45]} 12. Rfe1 {[%clk 0:02:50]}  Nc7 {[%clk 0:02:43]} 13. Nf1 {[%clk 0:02:46]}  Qd6 {[%clk 0:02:39]} 14. g3 {[%clk 0:02:45]}  b5 {[%clk 0:02:31]} 15. Ne3 {[%clk 0:02:42]}  b4 {[%clk 0:02:25]} 16. c4 {[%clk 0:02:40]}  cxd4 {[%clk 0:02:22]} 17. Nxd4 {[%clk 0:02:39]}  dxc4 {[%clk 0:02:23]} 18. Qxc4 {[%clk 0:02:36]}  Ncd5 {[%clk 0:02:18]} 19. Nxd5 {[%clk 0:02:36]}  Qxd5 {[%clk 0:02:18]} 20. Rac1 {[%clk 0:02:34]}  g6 {[%clk 0:02:06]} 21. Nc6 {[%clk 0:02:27]}  Qxc4 {[%clk 0:02:02]} 22. Rxc4 {[%clk 0:02:28]}  Nd5 {[%clk 0:02:02]} 23. Rec1 {[%clk 0:02:04]}  Kg7 {[%clk 0:02:02]} 24. Kf1 {[%clk 0:01:43]}  h5 {[%clk 0:01:54]} 25. h4 {[%clk 0:01:38]}  Rfc8 {[%clk 0:01:35]} 26. Ke2 {[%clk 0:01:37]}  Rc7 {[%clk 0:01:33]} 27. Ne5 {[%clk 0:01:31]}  Rb7 {[%clk 0:01:29]} 28. Nd3 {[%clk 0:01:11]}  a4 {[%clk 0:01:29]} 29. Nc5 {[%clk 0:01:08]}  Rb5 {[%clk 0:01:21]} 30. a3 {[%clk 0:01:06]}  Ra7 {[%clk 0:00:59]} 31. Ke1 {[%clk 0:00:59]}  Raa5 {[%clk 0:00:52]} 32. Kf1 {[%clk 0:00:53]}  Ra7 {[%clk 0:00:39]} 33. Ke2 {[%clk 0:00:44]}  Kf8 {[%clk 0:00:37]} 34. R1c2 {[%clk 0:00:40]}  Ke7 {[%clk 0:00:37]} 35. Nd3 {[%clk 0:00:38]}  bxa3 {[%clk 0:00:35]} 36. bxa3 {[%clk 0:00:39]}  Rb3 {[%clk 0:00:35]} 37. Ne5 {[%clk 0:00:31]}  Kf6 {[%clk 0:00:35]} 38. Nc6 {[%clk 0:00:22]}  Ra8 {[%clk 0:00:27]} 39. Nd4 {[%clk 0:00:06]}  Rxa3 {[%clk 0:00:26]} 40. Nb5 {[%clk 0:00:03]}  Rb3 {[%clk 0:00:23]} 41. Nd4 {[%clk 0:00:03]}  Rb6 {[%clk 0:00:18]} 42. Ra2 {[%clk 0:00:03]}  a3 {[%clk 0:00:17]} 43. Kf3 {[%clk 0:00:02]}  Rb2 {[%clk 0:00:15]} 44. Ra1 {[%clk 0:00:03]}  a2 {[%clk 0:00:15]} 45. Rc2 {[%clk 0:00:03]}  Ra3+ {[%clk 0:00:10]} 46. Ke2 {[%clk 0:00:03]}  Rxc2+ {[%clk 0:00:09]} 47. Nxc2 {[%clk 0:00:04]}  Ra4 {[%clk 0:00:08]} 48. Kd2 {[%clk 0:00:03]}  Kf5 {[%clk 0:00:09]} 49. Ne1 {[%clk 0:00:03]}  Kg4 {[%clk 0:00:08]} 50. Nd3 {[%clk 0:00:03]}  f6 {[%clk 0:00:07]} 51. Nc5 {[%clk 0:00:03]}  Ra7 {[%clk 0:00:02]} 52. Nxe6 {[%clk 0:00:03]}  Kf3 {[%clk 0:00:02]} 53. f5 {[%clk 0:00:02]}  gxf5 {[%clk 0:00:02]} 54. Nd4+ {[%clk 0:00:03]}  Kg4 {[%clk 0:00:02]} 55. Nb5 {[%clk 0:00:03]}  Ra5 {[%clk 0:00:02]} 56. Nd6 {[%clk 0:00:04]}  f4 {[%clk 0:00:02]} 57. Nc4 {[%clk 0:00:04]}  Rc5 {[%clk 0:00:02]} 58. Kd3 {[%clk 0:00:03]}  Nb4+ {[%clk 0:00:02]} 59. Kc3 {[%clk 0:00:03]}  Nc6 {[%clk 0:00:02]} 60. Kd3 {[%clk 0:00:03]}  Ne5+ {[%clk 0:00:02]} 61. Nxe5+ {[%clk 0:00:03]}  Rxe5 {[%clk 0:00:02]} 62. gxf4 {[%clk 0:00:02]}  Ra5 {[%clk 0:00:01]} 63. Kc4 {[%clk 0:00:03]}  Kxf4 {[%clk 0:00:01]} 64. Kb4 {[%clk 0:00:04]}  Ra7 {[%clk 0:00:02]} 65. Kc5 {[%clk 0:00:04]}  Kf3 {[%clk 0:00:02]} 66. Kb6 {[%clk 0:00:05]}  Ra8 {[%clk 0:00:02]} 67. Kb7 {[%clk 0:00:06]}  Ra3 {[%clk 0:00:03]} 68. Kb6 {[%clk 0:00:07]}  f5 {[%clk 0:00:04]} 69. Kb5 {[%clk 0:00:07]}  f4 {[%clk 0:00:04]} 70. Kb4 {[%clk 0:00:08]}  Ra7 {[%clk 0:00:05]} 71. Kc4 {[%clk 0:00:09]}  Kxf2 {[%clk 0:00:05]} 72. Kd4 {[%clk 0:00:10]}  f3 {[%clk 0:00:05]} 73. Ke4 {[%clk 0:00:11]}  Ke2 {[%clk 0:00:06]} 74. Kf4 {[%clk 0:00:11]}  f2 {[%clk 0:00:06]} 75. Kg5 {[%clk 0:00:12]}  f1=Q {[%clk 0:00:07]} 0-1


[Site "https://www.chess.com"]

[Event "Titled Tuesday Blitz March 15 Early 2022"]
[White "Maltsevskaya, Aleksandra"]
[Black "Omariev, Maksim"]
[WhiteFideId "24174041"]
[BlackFideId "4193423"]
[WhiteElo "2241"]
[BlackElo "2461"]
[Result "1-0"]
[Round "06"]
[TimeControl "180+1"]
[Date "2022.03.15"]
[WhiteClock "0:00:02"]
[BlackClock "0:00:03"]

1. e4 {[%clk 0:03:00]}  c5 {[%clk 0:02:52]} 2. Nf3 {[%clk 0:03:00]}  d6 {[%clk 0:02:52]} 3. d4 {[%clk 0:03:00]}  cxd4 {[%clk 0:02:52]} 4. Nxd4 {[%clk 0:03:01]}  Nf6 {[%clk 0:02:53]} 5. Nc3 {[%clk 0:03:01]}  a6 {[%clk 0:02:53]} 6. g3 {[%clk 0:02:58]}  e6 {[%clk 0:02:46]} 7. Bg2 {[%clk 0:02:58]}  Be7 {[%clk 0:02:47]} 8. O-O {[%clk 0:02:58]}  O-O {[%clk 0:02:45]} 9. Re1 {[%clk 0:02:58]}  Qc7 {[%clk 0:02:44]} 10. Be3 {[%clk 0:02:49]}  Nc6 {[%clk 0:02:41]} 11. a4 {[%clk 0:02:49]}  Rb8 {[%clk 0:02:32]} 12. h3 {[%clk 0:02:40]}  Ne5 {[%clk 0:02:21]} 13. Qe2 {[%clk 0:01:54]}  Nc4 {[%clk 0:01:57]} 14. Bc1 {[%clk 0:01:53]}  e5 {[%clk 0:00:52]} 15. Nf5 {[%clk 0:01:36]}  Bxf5 {[%clk 0:00:52]} 16. exf5 {[%clk 0:01:37]}  Rfc8 {[%clk 0:00:53]} 17. g4 {[%clk 0:01:35]}  b5 {[%clk 0:00:48]} 18. axb5 {[%clk 0:01:33]}  axb5 {[%clk 0:00:49]} 19. g5 {[%clk 0:01:34]}  Nd7 {[%clk 0:00:45]} 20. Nd5 {[%clk 0:01:34]}  Qd8 {[%clk 0:00:46]} 21. g6 {[%clk 0:01:19]}  Bg5 {[%clk 0:00:38]} 22. Qh5 {[%clk 0:01:15]}  h6 {[%clk 0:00:35]} 23. gxf7+ {[%clk 0:01:14]}  Kf8 {[%clk 0:00:32]} 24. f4 {[%clk 0:00:34]}  Bf6 {[%clk 0:00:25]} 25. Qg6 {[%clk 0:00:29]}  Ncb6 {[%clk 0:00:15]} 26. Ra7 {[%clk 0:00:23]}  Rxc2 {[%clk 0:00:13]} 27. Be3 {[%clk 0:00:16]}  Rbc8 {[%clk 0:00:05]} 28. Qh7 {[%clk 0:00:05]}  Kxf7 {[%clk 0:00:05]} 29. Nxb6 {[%clk 0:00:05]}  R8c7 {[%clk 0:00:04]} 30. Rxc7 {[%clk 0:00:05]}  Qxc7 {[%clk 0:00:04]} 31. Bd5+ {[%clk 0:00:05]}  Ke7 {[%clk 0:00:04]} 32. Qg8 {[%clk 0:00:05]}  Nxb6 {[%clk 0:00:04]} 33. Qf7+ {[%clk 0:00:05]}  Kd8 {[%clk 0:00:04]} 34. Qf8+ {[%clk 0:00:06]}  Kd7 {[%clk 0:00:05]} 35. Be6+ {[%clk 0:00:06]}  Kc6 {[%clk 0:00:05]} 36. Ra1 {[%clk 0:00:03]}  Kb7 {[%clk 0:00:03]} 37. Bd5+ {[%clk 0:00:01]}  Nxd5 {[%clk 0:00:03]} 38. Qa8# {[%clk 0:00:02]} 1-0


[Site "https://www.chess.com"]

[Event "Titled Tuesday Blitz March 15 Early 2022"]
[White "Marson, Juan Miguel"]
[Black "Fernandez Guillen, Ernesto J."]
[WhiteFideId "106585"]
[BlackFideId "3512428"]
[WhiteElo "2053"]
[BlackElo "2380"]
[Result "0-1"]
[Round "06"]
[TimeControl "180+1"]
[Date "2022.03.15"]
[WhiteClock "0:00:03"]
[BlackClock "0:00:14"]

1. e4 {[%clk 0:03:00]}  e5 {[%clk 0:02:59]} 2. Nf3 {[%clk 0:02:59]}  Nc6 {[%clk 0:03:00]} 3. Bb5 {[%clk 0:02:58]}  f5 {[%clk 0:03:00]} 4. d3 {[%clk 0:02:54]}  fxe4 {[%clk 0:02:59]} 5. dxe4 {[%clk 0:02:55]}  Nf6 {[%clk 0:02:59]} 6. Qe2 {[%clk 0:02:44]}  d6 {[%clk 0:02:58]} 7. h3 {[%clk 0:02:18]}  Be6 {[%clk 0:02:56]} 8. Nc3 {[%clk 0:02:17]}  Be7 {[%clk 0:02:55]} 9. Bc4 {[%clk 0:02:15]}  Qd7 {[%clk 0:02:53]} 10. Ng5 {[%clk 0:02:14]}  Nd4 {[%clk 0:02:36]} 11. Bxe6 {[%clk 0:02:14]}  Nxe6 {[%clk 0:02:34]} 12. Nxe6 {[%clk 0:02:11]}  Qxe6 {[%clk 0:02:35]} 13. Bg5 {[%clk 0:02:11]}  O-O {[%clk 0:02:34]} 14. Bxf6 {[%clk 0:02:09]}  Bxf6 {[%clk 0:02:35]} 15. Nd5 {[%clk 0:02:08]}  Bd8 {[%clk 0:02:34]} 16. Qc4 {[%clk 0:02:04]}  Kh8 {[%clk 0:02:30]} 17. Ne3 {[%clk 0:02:00]}  Qg6 {[%clk 0:02:29]} 18. Nf5 {[%clk 0:01:49]}  c6 {[%clk 0:02:17]} 19. O-O-O {[%clk 0:01:44]}  d5 {[%clk 0:02:16]} 20. Qb4 {[%clk 0:01:39]}  Bg5+ {[%clk 0:01:40]} 21. Kb1 {[%clk 0:01:39]}  d4 {[%clk 0:01:33]} 22. h4 {[%clk 0:01:29]}  Bf6 {[%clk 0:01:32]} 23. h5 {[%clk 0:01:29]}  Qxg2 {[%clk 0:01:29]} 24. Rhg1 {[%clk 0:01:12]}  Qxe4 {[%clk 0:01:28]} 25. Nxg7 {[%clk 0:01:01]}  Bxg7 {[%clk 0:00:49]} 26. Rxg7 {[%clk 0:00:55]}  Rxf2 {[%clk 0:00:47]} 27. Rdg1 {[%clk 0:00:38]}  Qxc2+ {[%clk 0:00:28]} 28. Ka1 {[%clk 0:00:38]}  Raf8 {[%clk 0:00:27]} 29. a4 {[%clk 0:00:06]}  Rf1+ {[%clk 0:00:23]} 30. Ka2 {[%clk 0:00:02]}  Qb1+ {[%clk 0:00:23]} 31. Kb3 {[%clk 0:00:02]}  R1f3+ {[%clk 0:00:14]} 32. Kc4 {[%clk 0:00:02]}  Qc2+ {[%clk 0:00:14]} 33. Qc3 {[%clk 0:00:03]}  Rxc3+ {[%clk 0:00:14]} 0-1


[Site "https://www.chess.com"]

[Event "Titled Tuesday Blitz March 15 Early 2022"]
[White "Milosevic, Milos"]
[Black "Miszler, Levente"]
[WhiteFideId "964875"]
[BlackFideId "763276"]
[WhiteElo "2237"]
[BlackElo "1966"]
[Result "1-0"]
[Round "06"]
[TimeControl "180+1"]
[Date "2022.03.15"]
[WhiteClock "0:02:12"]
[BlackClock "0:01:29"]

1. e4 {[%clk 0:02:54]}  e6 {[%clk 0:02:45]} 2. d4 {[%clk 0:02:53]}  d5 {[%clk 0:02:42]} 3. Nc3 {[%clk 0:02:54]}  Nf6 {[%clk 0:02:37]} 4. Bg5 {[%clk 0:02:54]}  dxe4 {[%clk 0:02:33]} 5. Nxe4 {[%clk 0:02:54]}  Be7 {[%clk 0:02:34]} 6. Bxf6 {[%clk 0:02:51]}  Bxf6 {[%clk 0:02:34]} 7. Nf3 {[%clk 0:02:51]}  b6 {[%clk 0:02:33]} 8. Bb5+ {[%clk 0:02:47]}  c6 {[%clk 0:02:26]} 9. Bc4 {[%clk 0:02:47]}  Bb7 {[%clk 0:02:26]} 10. Qe2 {[%clk 0:02:44]}  Nd7 {[%clk 0:02:24]} 11. O-O-O {[%clk 0:02:44]}  O-O {[%clk 0:02:22]} 12. Rhe1 {[%clk 0:02:40]}  Qc7 {[%clk 0:02:18]} 13. Kb1 {[%clk 0:02:37]}  a5 {[%clk 0:02:19]} 14. h4 {[%clk 0:02:32]}  b5 {[%clk 0:02:19]} 15. Bd3 {[%clk 0:02:30]}  b4 {[%clk 0:02:08]} 16. Neg5 {[%clk 0:02:31]}  h6 {[%clk 0:02:07]} 17. Qe4 {[%clk 0:02:29]}  Rfd8 {[%clk 0:01:55]} 18. Qh7+ {[%clk 0:02:25]}  Kf8 {[%clk 0:01:54]} 19. Rxe6 {[%clk 0:02:16]}  g6 {[%clk 0:01:29]} 20. Qxf7# {[%clk 0:02:12]} 1-0


[Site "https://www.chess.com"]

[Event "Titled Tuesday Blitz March 15 Early 2022"]
[White "Nagy, Gabor"]
[Black "Indjic, Aleksandar"]
[WhiteFideId "737119"]
[BlackFideId "911925"]
[WhiteElo "2534"]
[BlackElo "2616"]
[Result "1/2-1/2"]
[Round "06"]
[TimeControl "180+1"]
[Date "2022.03.15"]
[WhiteClock "0:00:24"]
[BlackClock "0:00:24"]

1. d4 {[%clk 0:02:58]}  d5 {[%clk 0:02:59]} 2. c4 {[%clk 0:02:58]}  e6 {[%clk 0:03:00]} 3. Nf3 {[%clk 0:02:58]}  a6 {[%clk 0:02:57]} 4. e3 {[%clk 0:02:57]}  Nf6 {[%clk 0:02:56]} 5. Nc3 {[%clk 0:02:57]}  Nbd7 {[%clk 0:02:56]} 6. b3 {[%clk 0:02:56]}  b6 {[%clk 0:02:55]} 7. Bb2 {[%clk 0:02:56]}  Bd6 {[%clk 0:02:52]} 8. cxd5 {[%clk 0:02:56]}  exd5 {[%clk 0:02:51]} 9. g3 {[%clk 0:02:55]}  Bb7 {[%clk 0:02:51]} 10. Bg2 {[%clk 0:02:55]}  Qe7 {[%clk 0:02:52]} 11. O-O {[%clk 0:02:54]}  h5 {[%clk 0:02:52]} 12. Rc1 {[%clk 0:02:52]}  O-O-O {[%clk 0:02:51]} 13. h4 {[%clk 0:02:46]}  Kb8 {[%clk 0:02:50]} 14. Ng5 {[%clk 0:02:40]}  Ne4 {[%clk 0:02:42]} 15. Ncxe4 {[%clk 0:02:35]}  dxe4 {[%clk 0:02:42]} 16. d5 {[%clk 0:02:36]}  f5 {[%clk 0:02:30]} 17. Ne6 {[%clk 0:02:25]}  Ne5 {[%clk 0:02:28]} 18. Nxd8 {[%clk 0:02:19]}  Qxd8 {[%clk 0:02:28]} 19. Bxe5 {[%clk 0:02:17]}  Bxe5 {[%clk 0:02:27]} 20. Qe2 {[%clk 0:02:15]}  g5 {[%clk 0:02:26]} 21. hxg5 {[%clk 0:02:13]}  Qxg5 {[%clk 0:02:25]} 22. f4 {[%clk 0:01:59]}  exf3 {[%clk 0:02:25]} 23. Qxf3 {[%clk 0:02:00]}  h4 {[%clk 0:02:24]} 24. Qxf5 {[%clk 0:01:50]}  Qxe3+ {[%clk 0:02:13]} 25. Qf2 {[%clk 0:01:47]}  Qh6 {[%clk 0:01:50]} 26. g4 {[%clk 0:01:30]}  Qg7 {[%clk 0:01:46]} 27. Qe2 {[%clk 0:01:21]}  h3 {[%clk 0:01:38]} 28. Bf3 {[%clk 0:01:20]}  Bd6 {[%clk 0:01:36]} 29. Rce1 {[%clk 0:01:18]}  Ka7 {[%clk 0:01:35]} 30. Kh1 {[%clk 0:01:18]}  h2 {[%clk 0:01:31]} 31. Bg2 {[%clk 0:01:16]}  a5 {[%clk 0:01:29]} 32. Qe6 {[%clk 0:01:13]}  Rh4 {[%clk 0:01:20]} 33. Re4 {[%clk 0:01:09]}  Qg5 {[%clk 0:01:03]} 34. Qf5 {[%clk 0:01:07]}  Qd2 {[%clk 0:01:03]} 35. g5 {[%clk 0:01:05]}  Rh8 {[%clk 0:00:59]} 36. g6 {[%clk 0:01:04]}  Rf8 {[%clk 0:00:55]} 37. Qxf8 {[%clk 0:00:54]}  Bxf8 {[%clk 0:00:55]} 38. Rxf8 {[%clk 0:00:55]}  Bxd5 {[%clk 0:00:50]} 39. Rg4 {[%clk 0:00:43]}  Qc1+ {[%clk 0:00:48]} 40. Kxh2 {[%clk 0:00:42]}  Qh6+ {[%clk 0:00:47]} 41. Kg3 {[%clk 0:00:40]}  Qxf8 {[%clk 0:00:48]} 42. Bxd5 {[%clk 0:00:39]}  Qd6+ {[%clk 0:00:48]} 43. Kh4 {[%clk 0:00:40]}  Qxd5 {[%clk 0:00:48]} 44. g7 {[%clk 0:00:40]}  Qg8 {[%clk 0:00:46]} 45. Rg6 {[%clk 0:00:41]}  Ka6 {[%clk 0:00:44]} 46. Kg5 {[%clk 0:00:41]}  Kb5 {[%clk 0:00:44]} 47. Kh6 {[%clk 0:00:41]}  Kb4 {[%clk 0:00:42]} 48. Rf6 {[%clk 0:00:42]}  Ka3 {[%clk 0:00:41]} 49. Rf8 {[%clk 0:00:41]}  Qe6+ {[%clk 0:00:41]} 50. Kg5 {[%clk 0:00:39]}  Qe5+ {[%clk 0:00:37]} 51. Kg6 {[%clk 0:00:40]}  Qg3+ {[%clk 0:00:37]} 52. Kf7 {[%clk 0:00:39]}  Qf4+ {[%clk 0:00:36]} 53. Ke7 {[%clk 0:00:37]}  Qg5+ {[%clk 0:00:37]} 54. Kf7 {[%clk 0:00:38]}  Qh5+ {[%clk 0:00:31]} 55. Kf6 {[%clk 0:00:37]}  Qh6+ {[%clk 0:00:30]} 56. Kf7 {[%clk 0:00:37]}  Qh7 {[%clk 0:00:29]} 57. Kf6 {[%clk 0:00:34]}  Kxa2 {[%clk 0:00:27]} 58. g8=Q {[%clk 0:00:34]}  Qxg8 {[%clk 0:00:27]} 59. Rxg8 {[%clk 0:00:35]}  Kxb3 {[%clk 0:00:28]} 60. Ke5 {[%clk 0:00:34]}  c5 {[%clk 0:00:24]} 61. Rb8 {[%clk 0:00:33]}  a4 {[%clk 0:00:24]} 62. Rxb6+ {[%clk 0:00:33]}  Kc3 {[%clk 0:00:24]} 63. Kd5 {[%clk 0:00:33]}  a3 {[%clk 0:00:24]} 64. Ra6 {[%clk 0:00:28]}  Kb3 {[%clk 0:00:24]} 65. Kxc5 {[%clk 0:00:28]}  a2 {[%clk 0:00:24]} 66. Kd4 {[%clk 0:00:26]}  Kb2 {[%clk 0:00:23]} 67. Rb6+ {[%clk 0:00:25]}  Kc2 {[%clk 0:00:23]} 68. Rc6+ {[%clk 0:00:24]}  Kb2 {[%clk 0:00:23]} 69. Rb6+ {[%clk 0:00:23]}  Kc2 {[%clk 0:00:23]} 70. Ra6 {[%clk 0:00:23]}  Kb2 {[%clk 0:00:23]} 71. Kd3 {[%clk 0:00:23]}  a1=Q {[%clk 0:00:23]} 72. Rxa1 {[%clk 0:00:24]}  Kxa1 {[%clk 0:00:24]} 1/2-1/2


[Site "https://www.chess.com"]

[Event "Titled Tuesday Blitz March 15 Early 2022"]
[White "Odegov, Artem"]
[Black "Quirke, Jeffrey"]
[WhiteFideId "34183644"]
[BlackFideId "2013029"]
[WhiteElo "2286"]
[BlackElo "2246"]
[Result "1-0"]
[Round "06"]
[TimeControl "180+1"]
[Date "2022.03.15"]
[WhiteClock "0:00:11"]
[BlackClock "0:00:03"]

1. d4 {[%clk 0:03:00]}  d5 {[%clk 0:02:59]} 2. c4 {[%clk 0:03:00]}  c5 {[%clk 0:02:59]} 3. cxd5 {[%clk 0:02:58]}  Qxd5 {[%clk 0:02:59]} 4. Nf3 {[%clk 0:02:54]}  cxd4 {[%clk 0:02:59]} 5. Qxd4 {[%clk 0:02:55]}  Nf6 {[%clk 0:02:58]} 6. Nc3 {[%clk 0:02:54]}  Qxd4 {[%clk 0:02:57]} 7. Nxd4 {[%clk 0:02:55]}  a6 {[%clk 0:02:57]} 8. Bf4 {[%clk 0:02:54]}  Bd7 {[%clk 0:02:49]} 9. e4 {[%clk 0:02:41]}  Nc6 {[%clk 0:02:42]} 10. Nxc6 {[%clk 0:02:41]}  Bxc6 {[%clk 0:02:41]} 11. f3 {[%clk 0:02:41]}  e6 {[%clk 0:02:37]} 12. Be2 {[%clk 0:02:42]}  Bc5 {[%clk 0:02:29]} 13. Rc1 {[%clk 0:02:41]}  Ba7 {[%clk 0:02:24]} 14. Bg3 {[%clk 0:02:38]}  Ke7 {[%clk 0:02:19]} 15. Bf2 {[%clk 0:02:37]}  Bxf2+ {[%clk 0:02:18]} 16. Kxf2 {[%clk 0:02:38]}  Rhd8 {[%clk 0:02:13]} 17. Rhd1 {[%clk 0:02:38]}  Rxd1 {[%clk 0:02:05]} 18. Rxd1 {[%clk 0:02:39]}  Rd8 {[%clk 0:01:54]} 19. Rxd8 {[%clk 0:02:37]}  Kxd8 {[%clk 0:01:54]} 20. Ke3 {[%clk 0:02:38]}  Kc7 {[%clk 0:01:47]} 21. Kd4 {[%clk 0:02:35]}  Nd7 {[%clk 0:01:43]} 22. Bf1 {[%clk 0:02:33]}  e5+ {[%clk 0:01:32]} 23. Ke3 {[%clk 0:02:31]}  b5 {[%clk 0:01:20]} 24. Bd3 {[%clk 0:02:27]}  Kd6 {[%clk 0:01:19]} 25. Bc2 {[%clk 0:02:27]}  Nc5 {[%clk 0:01:12]} 26. b4 {[%clk 0:02:00]}  Ne6 {[%clk 0:01:12]} 27. Ne2 {[%clk 0:02:00]}  f6 {[%clk 0:01:06]} 28. Bb3 {[%clk 0:01:59]}  Nc7 {[%clk 0:00:56]} 29. a3 {[%clk 0:01:58]}  Bd7 {[%clk 0:00:55]} 30. Nc1 {[%clk 0:01:55]}  Be6 {[%clk 0:00:55]} 31. Kd3 {[%clk 0:01:56]}  g5 {[%clk 0:00:48]} 32. g3 {[%clk 0:01:54]}  h5 {[%clk 0:00:47]} 33. Bxe6 {[%clk 0:01:43]}  Nxe6 {[%clk 0:00:46]} 34. Nb3 {[%clk 0:01:44]}  Kc6 {[%clk 0:00:34]} 35. Ke3 {[%clk 0:01:29]}  Kd6 {[%clk 0:00:32]} 36. Na5 {[%clk 0:01:08]}  Kc7 {[%clk 0:00:29]} 37. Kd3 {[%clk 0:00:58]}  Kb6 {[%clk 0:00:29]} 38. Nb3 {[%clk 0:00:58]}  Kc6 {[%clk 0:00:29]} 39. Nc1 {[%clk 0:00:56]}  Kd6 {[%clk 0:00:27]} 40. Ne2 {[%clk 0:00:56]}  Kc6 {[%clk 0:00:27]} 41. Nc3 {[%clk 0:00:55]}  Nc7 {[%clk 0:00:21]} 42. f4 {[%clk 0:00:51]}  Kd6 {[%clk 0:00:19]} 43. fxg5 {[%clk 0:00:48]}  fxg5 {[%clk 0:00:19]} 44. Nd1 {[%clk 0:00:48]}  Ne6 {[%clk 0:00:18]} 45. Ne3 {[%clk 0:00:48]}  Nd4 {[%clk 0:00:16]} 46. h3 {[%clk 0:00:40]}  Ke6 {[%clk 0:00:09]} 47. g4 {[%clk 0:00:40]}  h4 {[%clk 0:00:08]} 48. Nd5 {[%clk 0:00:38]}  Nf3 {[%clk 0:00:06]} 49. Nc7+ {[%clk 0:00:35]}  Kd6 {[%clk 0:00:07]} 50. Nxa6 {[%clk 0:00:36]}  Ng1 {[%clk 0:00:06]} 51. Nc5 {[%clk 0:00:34]}  Nxh3 {[%clk 0:00:05]} 52. Ke3 {[%clk 0:00:31]}  Nf4 {[%clk 0:00:05]} 53. Kf3 {[%clk 0:00:31]}  Ne6 {[%clk 0:00:02]} 54. Nb7+ {[%clk 0:00:14]}  Kc6 {[%clk 0:00:02]} 55. Na5+ {[%clk 0:00:14]}  Kb6 {[%clk 0:00:02]} 56. Nb3 {[%clk 0:00:15]}  Nd4+ {[%clk 0:00:02]} 57. Nxd4 {[%clk 0:00:16]}  exd4 {[%clk 0:00:03]} 58. e5 {[%clk 0:00:16]}  Kc6 {[%clk 0:00:03]} 59. a4 {[%clk 0:00:16]}  h3 {[%clk 0:00:03]} 60. e6 {[%clk 0:00:14]}  Kd6 {[%clk 0:00:03]} 61. axb5 {[%clk 0:00:14]}  h2 {[%clk 0:00:04]} 62. Kg2 {[%clk 0:00:15]}  d3 {[%clk 0:00:04]} 63. b6 {[%clk 0:00:15]}  d2 {[%clk 0:00:04]} 64. b7 {[%clk 0:00:15]}  d1=Q {[%clk 0:00:05]} 65. b8=Q+ {[%clk 0:00:15]}  Kxe6 {[%clk 0:00:04]} 66. Qe8+ {[%clk 0:00:15]}  Kf6 {[%clk 0:00:04]} 67. Qf8+ {[%clk 0:00:15]}  Kg6 {[%clk 0:00:04]} 68. Qf5+ {[%clk 0:00:16]}  Kh6 {[%clk 0:00:04]} 69. Qf6+ {[%clk 0:00:16]}  Kh7 {[%clk 0:00:05]} 70. Qf7+ {[%clk 0:00:17]}  Kh6 {[%clk 0:00:05]} 71. Qh5+ {[%clk 0:00:17]}  Kg7 {[%clk 0:00:05]} 72. Qxg5+ {[%clk 0:00:18]}  Kf7 {[%clk 0:00:05]} 73. Qf5+ {[%clk 0:00:19]}  Ke7 {[%clk 0:00:05]} 74. Kxh2 {[%clk 0:00:19]}  Qd2+ {[%clk 0:00:04]} 75. Kg3 {[%clk 0:00:19]}  Qxb4 {[%clk 0:00:05]} 76. Qe5+ {[%clk 0:00:18]}  Kf7 {[%clk 0:00:05]} 77. Qd5+ {[%clk 0:00:17]}  Kg6 {[%clk 0:00:04]} 78. Qf5+ {[%clk 0:00:16]}  Kg7 {[%clk 0:00:04]} 79. Qd7+ {[%clk 0:00:16]}  Kg6 {[%clk 0:00:04]} 80. Qc6+ {[%clk 0:00:17]}  Kg7 {[%clk 0:00:04]} 81. Qc7+ {[%clk 0:00:15]}  Kg6 {[%clk 0:00:04]} 82. Qc2+ {[%clk 0:00:11]}  Kg7 {[%clk 0:00:04]} 83. Qf5 {[%clk 0:00:11]}  Qc3+ {[%clk 0:00:04]} 84. Kh4 {[%clk 0:00:11]}  Qf6+ {[%clk 0:00:03]} 85. Qg5+ {[%clk 0:00:10]}  Qxg5+ {[%clk 0:00:03]} 86. Kxg5 {[%clk 0:00:11]} 1-0


[Site "https://www.chess.com"]